fUSD/lending_fUSD_20240419
["ID","MTS","AMOUNT","RATE_DAILY","PERIOD"]
[322906393,1713492642690,-151.0,0.00016438,2]
[322906394,1713492642699,-151.0,0.00016438,2]
[322906395,1713492642709,-151.0,0.00016438,2]
[322906396,1713492642718,-771.41,0.00016438,2]
[322906397,1713492642728,-151.0,0.00016438,2]
[322906398,1713492642737,-500.0,0.00016438,2]
[322906399,1713492642746,-1983.96,0.00016438,2]
[322906400,1713492642755,-500.0,0.00016438,2]
[322906401,1713492642764,-1231.39,0.00016438,2]
[322906402,1713492642774,-500.0,0.00016438,2]
[322906403,1713492642782,-1181.66,0.00016438,2]
[322906404,1713492642792,-500.0,0.00016438,2]
[322906405,1713492642801,-500.0,0.00016438,2]
[322906406,1713492642810,-500.0,0.00016438,2]
[322906407,1713492642820,-206.55761312,0.00016438,2]
[322906408,1713492642829,-500.0,0.00016438,2]
[322906409,1713492642837,-1627.67,0.00016438,2]
[322906410,1713492642846,-579.2634042,0.00016438,2]
[322906411,1713492642855,-500.0,0.00016438,2]
[322906412,1713492642864,-500.0,0.00016438,2]
[322906413,1713492642874,-927.85,0.00016438,2]
[322906414,1713492642887,-500.0,0.00016438,2]
[322906415,1713492642895,-500.0,0.00016438,2]
[322906416,1713492642905,-599.53,0.00016438,2]
[322906417,1713492642914,-500.0,0.00016438,2]
[322906418,1713492642923,-500.0,0.00016438,2]
[322906419,1713492642932,-500.0,0.00016438,2]
[322906420,1713492642942,-566.5,0.00016438,2]
[322906421,1713492642951,-1334.25,0.00016438,2]
[322906422,1713492642960,-500.0,0.00016438,2]
[322906423,1713492642969,-500.0,0.00016438,2]
[322906424,1713492642979,-500.0,0.00016438,2]
[322906425,1713492642987,-500.0,0.00016438,2]
[322906426,1713492642997,-500.0,0.00016438,2]
[322906427,1713492643006,-500.0,0.00016438,2]
[322906428,1713492643015,-736.9,0.00016438,2]
[322906429,1713492643024,-2735.66,0.00016438,2]
[322906430,1713492643033,-500.0,0.00016438,2]
[322906431,1713492643043,-500.0,0.00016438,2]
[322906432,1713492643052,-500.0,0.00016438,2]
[322906433,1713492643061,-500.0,0.00016438,2]
[322906434,1713492643071,-1095.86,0.00016438,2]
[322906435,1713492643080,-500.0,0.00016438,2]
[322906436,1713492643089,-838.98,0.00016438,2]
[322906437,1713492643098,-500.0,0.00016438,2]
[322906438,1713492643108,-500.0,0.00016438,2]
[322906439,1713492643117,-500.0,0.00016438,2]
[322906440,1713492643126,-500.0,0.00016438,2]
[322906441,1713492643139,-551.42,0.00016438,2]
[322906442,1713492643149,-500.0,0.00016438,2]
[322906443,1713492643158,-500.0,0.00016438,2]
[322906444,1713492643168,-500.0,0.00016438,2]
[322906445,1713492643177,-500.0,0.00016438,2]
[322906446,1713492643186,-321.00671523,0.00016438,2]
[322906447,1713492643196,-744.47,0.00016438,2]
[322906448,1713492643205,-500.0,0.00016438,2]
[322906449,1713492643214,-500.0,0.00016438,2]
[322906450,1713492643224,-500.0,0.00016438,2]
[322906451,1713492643235,-2580.41,0.00016438,2]
[322906452,1713492643248,-500.0,0.00016438,2]
[322906453,1713492643261,-917.39,0.00016438,2]
[322906454,1713492643277,-500.0,0.00016438,2]
[322906455,1713492643287,-1084.66,0.00016438,2]
[322906456,1713492643298,-1960.62,0.00016438,2]
[322906457,1713492643308,-4247.72,0.00016438,2]
[322906458,1713492643320,-503.36945735,0.00016438,2]
[322906459,1713492643330,-500.0,0.00016438,2]
[322906460,1713492643345,-1994.64,0.00016438,2]
[322906461,1713492643354,-838.08,0.00016438,2]
[322906462,1713492643364,-1728.99,0.00016438,2]
[322906463,1713492643373,-500.0,0.00016438,2]
[322906464,1713492643384,-500.0,0.00016438,2]
[322906465,1713492643395,-500.0,0.00016438,2]
[322906466,1713492643405,-500.0,0.00016438,2]
[322906467,1713492643414,-2019.75,0.00016438,2]
[322906468,1713492643424,-500.0,0.00016438,2]
[322906469,1713492643433,-500.0,0.00016438,2]
[322906470,1713492643442,-2084.45,0.00016438,2]
[322906471,1713492643451,-1080.72,0.00016438,2]
[322906472,1713492643460,-500.0,0.00016438,2]
[322906473,1713492643469,-500.0,0.00016438,2]
[322906474,1713492643478,-500.0,0.00016438,2]
[322906475,1713492643487,-500.0,0.00016438,2]
[322906476,1713492643496,-500.0,0.00016438,2]
[322906477,1713492643505,-500.0,0.00016438,2]
[322906478,1713492643514,-501.67964685,0.00016438,2]
[322906479,1713492643524,-500.0,0.00016438,2]
[322906480,1713492643533,-1937.48,0.00016438,2]
[322906481,1713492643542,-3547.35,0.00016438,2]
[322906482,1713492643551,-500.0,0.00016438,2]
[322906483,1713492643560,-1596.23,0.00016438,2]
[322906484,1713492643569,-787.39,0.00016438,2]
[322906485,1713492643578,-1126.02,0.00016438,2]
[322906486,1713492643587,-3586.25,0.00016438,2]
[322906487,1713492643596,-914.15,0.00016438,2]
[322906488,1713492643605,-1126.02,0.00016438,2]
[322906489,1713492643614,-1126.02,0.00016438,2]
[322906490,1713492643624,-1175.38,0.00016438,2]
[322906491,1713492643636,-1126.02,0.00016438,2]
[322906492,1713492643645,-1126.02,0.00016438,2]
[322906493,1713492643654,-567.31737482,0.00016438,2]
[322906494,1713492643662,-1126.02,0.00016438,2]
[322906495,1713492643671,-500.0,0.00016438,2]
[322906496,1713492643680,-1126.02,0.00016438,2]
[322906497,1713492643689,-1126.02,0.00016438,2]
[322906498,1713492643698,-2441.71,0.00016438,2]
[322906499,1713492643707,-1126.02,0.00016438,2]
[322906500,1713492643716,-1126.02,0.00016438,2]
[322906501,1713492643725,-1126.02,0.00016438,2]
[322906502,1713492643734,-2569.24,0.00016438,2]
[322906503,1713492643743,-1126.02,0.00016438,2]
[322906504,1713492643752,-500.0,0.00016438,2]
[322906505,1713492643762,-1126.02,0.00016438,2]
[322906506,1713492643771,-1126.02,0.00016438,2]
[322906507,1713492643781,-1126.02,0.00016438,2]
[322906508,1713492643790,-1126.02,0.00016438,2]
[322906509,1713492643799,-970.45,0.00016438,2]
[322906510,1713492643809,-1126.02,0.00016438,2]
[322906511,1713492643818,-1126.02,0.00016438,2]
[322906512,1713492643827,-1126.02,0.00016438,2]
[322906513,1713492643837,-500.0,0.00016438,2]
[322906514,1713492643846,-500.0,0.00016438,2]
[322906515,1713492643855,-500.0,0.00016438,2]
[322906516,1713492643865,-3399.5,0.00016438,2]
[322906517,1713492643874,-500.0,0.00016438,2]
[322906518,1713492643889,-500.0,0.00016438,2]
[322906519,1713492643900,-923.12,0.00016438,2]
[322906520,1713492643909,-2857.74,0.00016438,2]
[322906521,1713492643919,-2658.97,0.00016438,2]
[322906522,1713492643929,-4243.26,0.00016438,2]
[322906523,1713492643939,-500.0,0.00016438,2]
[322906524,1713492643948,-500.0,0.00016438,2]
[322906525,1713492643957,-500.0,0.00016438,2]
[322906526,1713492643967,-500.0,0.00016438,2]
[322906527,1713492643976,-572.05,0.00016438,2]
[322906528,1713492643985,-500.0,0.00016438,2]
[322906529,1713492643995,-500.0,0.00016438,2]
[322906530,1713492644004,-1006.54,0.00016438,2]
[322906531,1713492644013,-1512.37,0.00016438,2]
[322906532,1713492644023,-1358.07,0.00016438,2]
[322906533,1713492644032,-500.0,0.00016438,2]
[322906534,1713492644041,-1478.59,0.00016438,2]
[322906535,1713492644051,-500.0,0.00016438,2]
[322906536,1713492644060,-500.0,0.00016438,2]
[322906537,1713492644069,-1227.2,0.00016438,2]
[322906538,1713492644079,-500.0,0.00016438,2]
[322906539,1713492644088,-500.0,0.00016438,2]
[322906540,1713492644097,-500.0,0.00016438,2]
[322906541,1713492644107,-529.87659465,0.00016438,2]
[322906542,1713492644116,-562.07,0.00016438,2]
[322906543,1713492644126,-500.0,0.00016438,2]
[322906544,1713492644140,-500.0,0.00016438,2]
[322906545,1713492644149,-608.46,0.00016438,2]
[322906546,1713492644159,-500.0,0.00016438,2]
[322906547,1713492644168,-500.0,0.00016438,2]
[322906549,1713492644179,-500.0,0.00016438,2]
[322906551,1713492644188,-500.0,0.00016438,2]
[322906553,1713492644198,-500.0,0.00016438,2]
[322906555,1713492644207,-3122.59,0.00016438,2]
[322906557,1713492644216,-500.0,0.00016438,2]
[322906559,1713492644225,-500.0,0.00016438,2]
[322906561,1713492644235,-500.0,0.00016438,2]
[322906563,1713492644243,-500.0,0.00016438,2]
[322906565,1713492644253,-290.81250775,0.00016438,2]
[322906567,1713492644265,-4852.65,0.00016438,2]
[322906569,1713492644274,-961.43,0.00016438,2]
[322906571,1713492644283,-2417.72,0.00016438,2]
[322906573,1713492644292,-1501.98,0.00016438,2]
[322906574,1713492644302,-500.0,0.00016438,2]
[322906576,1713492644311,-500.0,0.00016438,2]
[322906578,1713492644320,-2505.41,0.00016438,2]
[322906580,1713492644329,-500.0,0.00016438,2]
[322906582,1713492644339,-500.0,0.00016438,2]
[322906584,1713492644349,-536.08,0.00016438,2]
[322906586,1713492644358,-500.0,0.00016438,2]
[322906588,1713492644366,-500.0,0.00016438,2]
[322906590,1713492644376,-500.0,0.00016438,2]
[322906592,1713492644388,-500.0,0.00016438,2]
[322906594,1713492644397,-1193.82,0.00016438,2]
[322906596,1713492644406,-746.76,0.00016438,2]
[322906598,1713492644415,-500.0,0.00016438,2]
[322906600,1713492644424,-500.0,0.00016438,2]
[322906602,1713492644434,-500.0,0.00016438,2]
[322906604,1713492644443,-1150.16,0.00016438,2]
[322906606,1713492644452,-500.0,0.00016438,2]
[322906608,1713492644461,-557.81,0.00016438,2]
[322906610,1713492644470,-500.0,0.00016438,2]
[322906612,1713492644479,-500.0,0.00016438,2]
[322906614,1713492644488,-500.0,0.00016438,2]
[322906616,1713492644497,-2038.0,0.00016438,2]
[322906618,1713492644506,-500.0,0.00016438,2]
[322906620,1713492644516,-500.0,0.00016438,2]
[322906622,1713492644525,-510.54,0.00016438,2]
[322906624,1713492644534,-2021.33,0.00016438,2]
[322906626,1713492644543,-511.16,0.00016438,2]
[322906628,1713492644552,-500.0,0.00016438,2]
[322906630,1713492644561,-500.0,0.00016438,2]
[322906632,1713492644570,-500.0,0.00016438,2]
[322906634,1713492644579,-500.0,0.00016438,2]
[322906636,1713492644588,-500.0,0.00016438,2]
[322906638,1713492644597,-500.0,0.00016438,2]
[322906640,1713492644606,-500.0,0.00016438,2]
[322906642,1713492644615,-362.08972955,0.00016438,2]
[322906644,1713492644624,-500.0,0.00016438,2]
[322906646,1713492644636,-2782.96,0.00016438,2]
[322906648,1713492644645,-1145.62,0.00016438,2]
[322906650,1713492644654,-500.0,0.00016438,2]
[322906652,1713492644663,-500.0,0.00016438,2]
[322906654,1713492644672,-500.0,0.00016438,2]
[322906656,1713492644682,-959.55,0.00016438,2]
[322906658,1713492644691,-4015.5,0.00016438,2]
[322906660,1713492644700,-500.0,0.00016438,2]
[322906662,1713492644709,-506.43196753,0.00016438,2]
[322906664,1713492644718,-2538.27,0.00016438,2]
[322906666,1713492644727,-500.0,0.00016438,2]
[322906668,1713492644736,-500.0,0.00016438,2]
[322906670,1713492644746,-646.07613461,0.00016438,2]
[322906672,1713492644755,-679.43,0.00016438,2]
[322906674,1713492644765,-500.0,0.00016438,2]
[322906676,1713492644774,-1664.47,0.00016438,2]
[322906678,1713492644784,-500.0,0.00016438,2]
[322906680,1713492644793,-500.0,0.00016438,2]
[322906682,1713492644803,-500.0,0.00016438,2]
[322906684,1713492644813,-500.0,0.00016438,2]
[322906685,1713492644822,-500.0,0.00016438,2]
[322906686,1713492644832,-501.07268578,0.00016438,2]
[322906687,1713492644841,-5415.06,0.00016438,2]
[322906688,1713492644850,-906.31,0.00016438,2]
[322906689,1713492644860,-1517.33,0.00016438,2]
[322906690,1713492644870,-1257.12,0.00016438,2]
[322906691,1713492644879,-500.0,0.00016438,2]
[322906692,1713492644892,-901.21,0.00016438,2]
[322906694,1713492644902,-1026.94,0.00016438,2]
[322906696,1713492644911,-500.0,0.00016438,2]
[322906698,1713492644919,-500.0,0.00016438,2]
[322906700,1713492644929,-3565.04,0.00016438,2]
[322906702,1713492644939,-2168.72,0.00016438,2]
[322906704,1713492644948,-500.0,0.00016438,2]
[322906707,1713492644957,-982.97,0.00016438,2]
[322906708,1713492644967,-500.0,0.00016438,2]
[322906711,1713492644976,-500.0,0.00016438,2]
[322906713,1713492644985,-500.0,0.00016438,2]
[322906714,1713492644994,-500.0,0.00016438,2]
[322906716,1713492645003,-5628.39,0.00016438,2]
[322906718,1713492645013,-500.0,0.00016438,2]
[322906721,1713492645022,-500.0,0.00016438,2]
[322906723,1713492645031,-500.0,0.00016438,2]
[322906725,1713492645041,-500.0,0.00016438,2]
[322906727,1713492645050,-500.0,0.00016438,2]
[322906729,1713492645059,-500.0,0.00016438,2]
[322906731,1713492645069,-500.0,0.00016438,2]
[322906733,1713492645079,-985.98,0.00016438,2]
[322906735,1713492645088,-1328.89,0.00016438,2]
[322906737,1713492645098,-500.0,0.00016438,2]
[322906739,1713492645107,-2355.58,0.00016438,2]
[322906741,1713492645117,-500.0,0.00016438,2]
[322906743,1713492645126,-500.0,0.00016438,2]
[322906745,1713492645140,-1095.04,0.00016438,2]
[322906747,1713492645150,-500.0,0.00016438,2]
[322906749,1713492645159,-1503.96,0.00016438,2]
[322906751,1713492645169,-588.23,0.00016438,2]
[322906753,1713492645178,-1470.16,0.00016438,2]
[322906755,1713492645187,-514.64,0.00016438,2]
[322906757,1713492645198,-500.0,0.00016438,2]
[322906759,1713492645207,-524.88,0.00016438,2]
[322906761,1713492645216,-500.0,0.00016438,2]
[322906763,1713492645226,-500.0,0.00016438,2]
[322906765,1713492645236,-500.0,0.00016438,2]
[322906769,1713492645249,-1997.65,0.00016438,2]
[322906771,1713492645260,-569.72,0.00016438,2]
[322906800,1713492645531,-997.13,0.00016438,2]
[322906802,1713492645541,-502.73649292,0.00016438,2]
[322906804,1713492645550,-500.0,0.00016438,2]
[322906806,1713492645559,-500.0,0.00016438,2]
[322906808,1713492645568,-500.0,0.00016438,2]
[322906810,1713492645577,-880.47,0.00016438,2]
[322906812,1713492645587,-500.0,0.00016438,2]
[322906814,1713492645596,-577.52,0.00016438,2]
[322906816,1713492645605,-500.0,0.00016438,2]
[322906818,1713492645614,-5318.19,0.00016438,2]
[322906820,1713492645624,-500.0,0.00016438,2]
[322906822,1713492645636,-4278.03,0.00016438,2]
[322906824,1713492645645,-502.51,0.00016438,2]
[322906826,1713492645654,-541.16,0.00016438,2]
[322906828,1713492645664,-953.28,0.00016438,2]
[322906830,1713492645673,-560.87,0.00016438,2]
[322906832,1713492645683,-506.1,0.00016438,2]
[322906834,1713492645692,-4432.49,0.00016438,2]
[322906836,1713492645701,-2765.85,0.00016438,2]
[322906838,1713492645710,-500.0,0.00016438,2]
[322906840,1713492645719,-500.0,0.00016438,2]
[322906842,1713492645729,-500.0,0.00016438,2]
[322906844,1713492645738,-723.22,0.00016438,2]
[322906846,1713492645748,-500.0,0.00016438,2]
[322906848,1713492645757,-500.0,0.00016438,2]
[322906850,1713492645767,-3006.13,0.00016438,2]
[322906852,1713492645777,-3482.27,0.00016438,2]
[322906854,1713492645787,-500.0,0.00016438,2]
[322906856,1713492645796,-500.0,0.00016438,2]
[322906858,1713492645806,-500.0,0.00016438,2]
[322906860,1713492645815,-500.0,0.00016438,2]
[322906862,1713492645825,-500.0,0.00016438,2]
[322906864,1713492645835,-500.0,0.00016438,2]
[322906866,1713492645844,-500.0,0.00016438,2]
[322906868,1713492645854,-2260.79,0.00016438,2]
[322906870,1713492645863,-1640.52,0.00016438,2]
[322906872,1713492645873,-500.0,0.00016438,2]
[322906875,1713492645882,-702.29,0.00016438,2]
[322906877,1713492645897,-2170.28,0.00016438,2]
[322906879,1713492645907,-500.0,0.00016438,2]
[322906881,1713492645916,-500.0,0.00016438,2]
[322906882,1713492645925,-500.0,0.00016438,2]
[322906884,1713492645935,-895.34,0.00016438,2]
[322906886,1713492645944,-500.0,0.00016438,2]
[322906889,1713492645954,-1154.19,0.00016438,2]
[322906891,1713492645964,-1742.65,0.00016438,2]
[322906893,1713492645973,-5143.49,0.00016438,2]
[322906895,1713492645983,-500.0,0.00016438,2]
[322906896,1713492645992,-4492.16,0.00016438,2]
[322906899,1713492646002,-998.72,0.00016438,2]
[322906901,1713492646011,-500.0,0.00016438,2]
[322906902,1713492646021,-1915.6,0.00016438,2]
[322906905,1713492646031,-5278.41,0.00016438,2]
[322906907,1713492646041,-500.0,0.00016438,2]
[322906909,1713492646051,-500.0,0.00016438,2]
[322906910,1713492646060,-500.0,0.00016438,2]
[322906913,1713492646070,-500.0,0.00016438,2]
[322906915,1713492646080,-254.36293666,0.00016438,2]
[322906917,1713492646090,-500.0,0.00016438,2]
[322906919,1713492646099,-500.0,0.00016438,2]
[322906921,1713492646109,-3927.03,0.00016438,2]
[322906923,1713492646118,-2400.82,0.00016438,2]
[322906925,1713492646127,-1673.15,0.00016438,2]
[322906927,1713492646140,-500.0,0.00016438,2]
[322906929,1713492646149,-656.61,0.00016438,2]
[322906931,1713492646159,-500.0,0.00016438,2]
[322906933,1713492646168,-500.0,0.00016438,2]
[322906935,1713492646177,-1529.85,0.00016438,2]
[322906937,1713492646187,-3605.27,0.00016438,2]
[322906939,1713492646196,-555.01436582,0.00016438,2]
[322906941,1713492646205,-500.0,0.00016438,2]
[322906943,1713492646215,-632.65,0.00016438,2]
[322906945,1713492646224,-500.0,0.00016438,2]
[322906947,1713492646234,-500.0,0.00016438,2]
[322906949,1713492646243,-500.0,0.00016438,2]
[322906951,1713492646257,-1058.76,0.00016438,2]
[322906953,1713492646266,-1273.96,0.00016438,2]
[322906955,1713492646275,-500.0,0.00016438,2]
[322906957,1713492646285,-500.0,0.00016438,2]
[322906959,1713492646295,-899.76,0.00016438,2]
[322906960,1713492646304,-500.0,0.00016438,2]
[322906961,1713492646314,-4605.08,0.00016438,2]
[322906962,1713492646324,-2010.76,0.00016438,2]
[322906963,1713492646333,-500.0,0.00016438,2]
[322906964,1713492646343,-1690.62,0.00016438,2]
[322906965,1713492646353,-1560.88,0.00016438,2]
[322906966,1713492646362,-1228.57,0.00016438,2]
[322906967,1713492646372,-500.0,0.00016438,2]
[322906969,1713492646381,-513.16,0.00016438,2]
[322906971,1713492646395,-3364.24,0.00016438,2]
[322906973,1713492646405,-589.14,0.00016438,2]
[322906975,1713492646417,-3532.75,0.00016438,2]
[322906977,1713492646426,-500.0,0.00016438,2]
[322906979,1713492646436,-3275.93,0.00016438,2]
[322906981,1713492646445,-500.0,0.00016438,2]
[322906984,1713492646455,-1869.71,0.00016438,2]
[322906985,1713492646465,-455.99065224,0.00016438,2]
[322906988,1713492646474,-500.0,0.00016438,2]
[322906990,1713492646484,-515.49,0.00016438,2]
[322906992,1713492646493,-1405.38,0.00016438,2]
[322906994,1713492646503,-500.0,0.00016438,2]
[322906996,1713492646512,-500.0,0.00016438,2]
[322906998,1713492646521,-500.0,0.00016438,2]
[322906999,1713492646531,-500.0,0.00016438,2]
[322907002,1713492646540,-576.97,0.00016438,2]
[322907004,1713492646550,-500.0,0.00016438,2]
[322907006,1713492646559,-500.0,0.00016438,2]
[322907008,1713492646567,-500.0,0.00016438,2]
[322907010,1713492646577,-500.0,0.00016438,2]
[322907012,1713492646586,-2711.07,0.00016438,2]
[322907014,1713492646595,-500.0,0.00016438,2]
[322907016,1713492646603,-500.0,0.00016438,2]
[322907018,1713492646612,-500.0,0.00016438,2]
[322907020,1713492646622,-2247.72,0.00016438,2]
[322907022,1713492646631,-1400.9,0.00016438,2]
[322907024,1713492646643,-859.03,0.00016438,2]
[322907026,1713492646652,-2152.81,0.00016438,2]
[322907028,1713492646661,-500.0,0.00016438,2]
[322907030,1713492646670,-500.0,0.00016438,2]
[322907032,1713492646679,-1090.75,0.00016438,2]
[322907034,1713492646688,-500.0,0.00016438,2]
[322907036,1713492646697,-500.0,0.00016438,2]
[322907038,1713492646706,-933.43,0.00016438,2]
[322907040,1713492646716,-530.19,0.00016438,2]
[322907042,1713492646725,-500.0,0.00016438,2]
[322907044,1713492646734,-500.0,0.00016438,2]
[322907046,1713492646744,-500.0,0.00016438,2]
[322907048,1713492646753,-826.24,0.00016438,2]
[322907050,1713492646762,-500.0,0.00016438,2]
[322907052,1713492646771,-500.0,0.00016438,2]
[322907054,1713492646781,-500.0,0.00016438,2]
[322907056,1713492646791,-801.99,0.00016438,2]
[322907058,1713492646800,-2344.33,0.00016438,2]
[322907059,1713492646810,-1106.72,0.00016438,2]
[322907060,1713492646819,-726.75,0.00016438,2]
[322907061,1713492646829,-3623.5,0.00016438,2]
[322907062,1713492646839,-500.0,0.00016438,2]
[322907063,1713492646849,-2516.18,0.00016438,2]
[322907064,1713492646858,-823.18,0.00016438,2]
[322907065,1713492646868,-500.0,0.00016438,2]
[322907066,1713492646878,-1936.09,0.00016438,2]
[322907067,1713492646890,-500.0,0.00016438,2]
[322907068,1713492646900,-512.95769234,0.00016438,2]
[322907069,1713492646910,-500.0,0.00016438,2]
[322907070,1713492646920,-500.0,0.00016438,2]
[322907071,1713492646930,-500.0,0.00016438,2]
[322907072,1713492646939,-512.90987209,0.00016438,2]
[322907073,1713492646950,-3684.67,0.00016438,2]
[322907074,1713492646959,-2784.46,0.00016438,2]
[322907075,1713492646969,-551.7,0.00016438,2]
[322907076,1713492646979,-523.96,0.00016438,2]
[322907077,1713492646988,-500.0,0.00016438,2]
[322907078,1713492646999,-500.0,0.00016438,2]
[322907079,1713492647008,-2869.98,0.00016438,2]
[322907080,1713492647018,-3395.49,0.00016438,2]
[322907081,1713492647027,-500.0,0.00016438,2]
[322907082,1713492647037,-500.0,0.00016438,2]
[322907083,1713492647046,-500.0,0.00016438,2]
[322907084,1713492647056,-592.66,0.00016438,2]
[322907085,1713492647066,-500.0,0.00016438,2]
[322907086,1713492647075,-500.0,0.00016438,2]
[322907087,1713492647085,-500.0,0.00016438,2]
[322907088,1713492647094,-500.0,0.00016438,2]
[322907089,1713492647103,-500.0,0.00016438,2]
[322907090,1713492647112,-500.0,0.00016438,2]
[322907091,1713492647122,-500.0,0.00016438,2]
[322907092,1713492647132,-500.0,0.00016438,2]
[322907093,1713492647145,-500.0,0.00016438,2]
[322907094,1713492647154,-500.0,0.00016438,2]
[322907095,1713492647164,-629.35,0.00016438,2]
[322907096,1713492647174,-4325.02,0.00016438,2]
[322907097,1713492647183,-500.0,0.00016438,2]
[322907098,1713492647193,-500.0,0.00016438,2]
[322907099,1713492647202,-500.0,0.00016438,2]
[322907100,1713492647212,-708.73,0.00016438,2]
[322907101,1713492647221,-496.88991062,0.00016438,2]
[322907102,1713492647231,-500.0,0.00016438,2]
[322907103,1713492647241,-500.0,0.00016438,2]
[322907104,1713492647251,-1166.35,0.00016438,2]
[322907105,1713492647262,-500.0,0.00016438,2]
[322907106,1713492647271,-500.0,0.00016438,2]
[322907107,1713492647281,-500.0,0.00016438,2]
[322907108,1713492647291,-576.03,0.00016438,2]
[322907109,1713492647300,-500.0,0.00016438,2]
[322907110,1713492647310,-583.65673425,0.00016438,2]
[322907111,1713492647319,-2174.66,0.00016438,2]
[322907112,1713492647328,-500.0,0.00016438,2]
[322907113,1713492647338,-505.35129074,0.00016438,2]
[322907114,1713492647348,-1367.0,0.00016438,2]
[322907115,1713492647358,-4668.72,0.00016438,2]
[322907116,1713492647367,-1229.52,0.00016438,2]
[322907117,1713492647376,-500.0,0.00016438,2]
[322907118,1713492647388,-517.92,0.00016438,2]
[322907119,1713492647397,-500.0,0.00016438,2]
[322907120,1713492647407,-500.0,0.00016438,2]
[322907121,1713492647416,-6285.36,0.00016438,2]
[322907122,1713492647425,-390.24265509,0.00016438,2]
[322907123,1713492647434,-500.0,0.00016438,2]
[322907124,1713492647443,-4934.56,0.00016438,2]
[322907125,1713492647452,-2654.86,0.00016438,2]
[322907126,1713492647462,-1043.29,0.00016438,2]
[322907127,1713492647471,-1306.54,0.00016438,2]
[322907128,1713492647480,-500.0,0.00016438,2]
[322907129,1713492647490,-500.0,0.00016438,2]
[322907130,1713492647499,-1705.78,0.00016438,2]
[322907131,1713492647509,-5380.74,0.00016438,2]
[322907132,1713492647518,-500.0,0.00016438,2]
[322907133,1713492647528,-868.7,0.00016438,2]
[322907134,1713492647537,-2239.17,0.00016438,2]
[322907135,1713492647547,-500.0,0.00016438,2]
[322907136,1713492647558,-500.0,0.00016438,2]
[322907137,1713492647567,-500.0,0.00016438,2]
[322907138,1713492647577,-986.67,0.00016438,2]
[322907139,1713492647586,-4103.79,0.00016438,2]
[322907140,1713492647595,-500.0,0.00016438,2]
[322907141,1713492647604,-500.0,0.00016438,2]
[322907142,1713492647613,-1772.29,0.00016438,2]
[322907143,1713492647623,-2989.66,0.00016438,2]
[322907144,1713492647632,-500.0,0.00016438,2]
[322907145,1713492647647,-1092.33,0.00016438,2]
[322907146,1713492647657,-500.0,0.00016438,2]
[322907147,1713492647666,-933.74,0.00016438,2]
[322907148,1713492647675,-500.0,0.00016438,2]
[322907149,1713492647685,-1958.33,0.00016438,2]
[322907150,1713492647694,-500.0,0.00016438,2]
[322907151,1713492647704,-1015.76,0.00016438,2]
[322907152,1713492647714,-958.85,0.00016438,2]
[322907153,1713492647723,-1336.77,0.00016438,2]
[322907154,1713492647733,-500.0,0.00016438,2]
[322907155,1713492647742,-1534.0,0.00016438,2]